Workbook

Sheet Sheet1
B3: C1 | C3: =(D3)/1000 -> 3 | D3: 3000
B5: C2 | C5: =(D5)/10000 -> 0.8954 | D5: 8954
B7: C3 | C7: =(D7)/100 -> 26.82 | D7: 2682
B9: C4 | C9: =(D9)/20000 -> 0.0518 | D9: 1036
B11: n1 | C11: =(D11-5000)/5000 -> 0.321 | D11: 6605
B13: n2 | C13: =(D13-5000)/5000 -> 1 | D13: 10000
B15: Theta1 | C15: =D15 -> 5 | D15: 5
B17: Theta2 | C17: =D17/10000*90 -> 79.236 | D17: 8804
H20: Place and rotate slot on Disk | K20: Reference Circle
A21: Step | B21: 0.25 | H21: Ro | I21: 25 | K21: Ro | L21: 28
A22: End | B22: 90 | H22: Thetao | I22: 90
B23: Theta | C23: f1 | D23: f2 | E23: f3 | F23: R | H23: X | I23: Y | K23: X | L23: Y
B24: 0 | C24: =$C$3 -> 3 | D24: =-(($C$5*(B24-$C$15))^$C$11)*SIN(MIN(RADIANS(90),RADIANS((B24-$C$15)*90/$C$7))) ->  | E24: =$C$9*(B24-$C$17)^$C$13 -> -4.1044248 | F24: =IF(B24>$C$17,SUM(C24:E24),IF(B24>$C$15,SUM(C24:D24),C24)) -> 3 | H24: =(F24+$I$21)*COS(RADIANS(B24+$I$22)) -> 1.715207837e-15 | I24: =(F24+$I$21)*SIN(RADIANS(B24+$I$22)) -> 28 | K24: =$L$21*COS(RADIANS(B24+$I$22)) -> 1.715207837e-15 | L24: =$L$21*SIN(RADIANS(B24+$I$22)) -> 28
B25: =IF(B24+$B$21<90.00001,B24+$B$21,90) -> 0.25 | C25: =$C$3 -> 3 | E25: =$C$9*(B25-$C$17)^$C$13 -> -4.0914748 | F25: =IF(B25>$C$17,SUM(C25:E25),IF(B25>$C$15,SUM(C25:D25),C25)) -> 3 | H25: =(F25+$I$21)*COS(RADIANS(B25+$I$22)) -> -0.12217266 | I25: =(F25+$I$21)*SIN(RADIANS(B25+$I$22)) -> 27.99973346 | K25: =$L$21*COS(RADIANS(B25+$I$22)) -> -0.12217266 | L25: =$L$21*SIN(RADIANS(B25+$I$22)) -> 27.99973346
B26: 0.5 | C26: 3 | E26: =$C$9*(B26-$C$17)^$C$13 -> -4.0785248 | F26: =IF(B26>$C$17,SUM(C26:E26),IF(B26>$C$15,SUM(C26:D26),C26)) -> 3 | H26: -0.244342994 | I26: 27.99893385 | K26: -0.244342994 | L26: 27.99893385
B27: 0.75 | C27: 3 | E27: =$C$9*(B27-$C$17)^$C$13 -> -4.0655748 | F27: =IF(B27>$C$17,SUM(C27:E27),IF(B27>$C$15,SUM(C27:D27),C27)) -> 3 | H27: -0.366508676 | I27: 27.99760117 | K27: -0.366508676 | L27: 27.99760117
B28: 1 | C28: 3 | E28: =$C$9*(B28-$C$17)^$C$13 -> -4.0526248 | F28: =IF(B28>$C$17,SUM(C28:E28),IF(B28>$C$15,SUM(C28:D28),C28)) -> 3 | H28: -0.4886673802 | I28: 27.99573546 | K28: -0.4886673802 | L28: 27.99573546
B29: 1.25 | C29: 3 | E29: =$C$9*(B29-$C$17)^$C$13 -> -4.0396748 | F29: =IF(B29>$C$17,SUM(C29:E29),IF(B29>$C$15,SUM(C29:D29),C29)) -> 3 | H29: -0.610816781 | I29: 27.99333676 | K29: -0.610816781 | L29: 27.99333676
B30: 1.5 | C30: 3 | E30: =$C$9*(B30-$C$17)^$C$13 -> -4.0267248 | F30: =IF(B30>$C$17,SUM(C30:E30),IF(B30>$C$15,SUM(C30:D30),C30)) -> 3 | H30: -0.7329545526 | I30: 27.9904051 | K30: -0.7329545526 | L30: 27.9904051
B31: 1.75 | C31: 3 | E31: =$C$9*(B31-$C$17)^$C$13 -> -4.0137748 | F31: =IF(B31>$C$17,SUM(C31:E31),IF(B31>$C$15,SUM(C31:D31),C31)) -> 3 | H31: -0.8550783699 | I31: 27.98694054 | K31: -0.8550783699 | L31: 27.98694054
B32: 2 | C32: 3 | E32: =$C$9*(B32-$C$17)^$C$13 -> -4.0008248 | F32: =IF(B32>$C$17,SUM(C32:E32),IF(B32>$C$15,SUM(C32:D32),C32)) -> 3 | H32: -0.9771859077 | I32: 27.98294316 | K32: -0.9771859077 | L32: 27.98294316
B33: 2.25 | C33: 3 | E33: =$C$9*(B33-$C$17)^$C$13 -> -3.9878748 | F33: =IF(B33>$C$17,SUM(C33:E33),IF(B33>$C$15,SUM(C33:D33),C33)) -> 3 | H33: -1.099274841 | I33: 27.97841301 | K33: -1.099274841 | L33: 27.97841301
B34: 2.5 | C34: 3 | E34: =$C$9*(B34-$C$17)^$C$13 -> -3.9749248 | F34: =IF(B34>$C$17,SUM(C34:E34),IF(B34>$C$15,SUM(C34:D34),C34)) -> 3 | H34: -1.221342846 | I34: 27.9733502 | K34: -1.221342846 | L34: 27.9733502
B35: 2.75 | C35: 3 | E35: =$C$9*(B35-$C$17)^$C$13 -> -3.9619748 | F35: =IF(B35>$C$17,SUM(C35:E35),IF(B35>$C$15,SUM(C35:D35),C35)) -> 3 | H35: -1.343387599 | I35: 27.96775482 | K35: -1.343387599 | L35: 27.96775482
B36: 3 | C36: 3 | E36: =$C$9*(B36-$C$17)^$C$13 -> -3.9490248 | F36: =IF(B36>$C$17,SUM(C36:E36),IF(B36>$C$15,SUM(C36:D36),C36)) -> 3 | H36: -1.465406775 | I36: 27.96162697 | K36: -1.465406775 | L36: 27.96162697
B37: 3.25 | C37: 3 | E37: =$C$9*(B37-$C$17)^$C$13 -> -3.9360748 | F37: =IF(B37>$C$17,SUM(C37:E37),IF(B37>$C$15,SUM(C37:D37),C37)) -> 3 | H37: -1.587398052 | I37: 27.95496678 | K37: -1.587398052 | L37: 27.95496678
B38: 3.5 | C38: 3 | E38: =$C$9*(B38-$C$17)^$C$13 -> -3.9231248 | F38: =IF(B38>$C$17,SUM(C38:E38),IF(B38>$C$15,SUM(C38:D38),C38)) -> 3 | H38: -1.709359107 | I38: 27.94777436 | K38: -1.709359107 | L38: 27.94777436
B39: 3.75 | C39: 3 | E39: =$C$9*(B39-$C$17)^$C$13 -> -3.9101748 | F39: =IF(B39>$C$17,SUM(C39:E39),IF(B39>$C$15,SUM(C39:D39),C39)) -> 3 | H39: -1.831287618 | I39: 27.94004985 | K39: -1.831287618 | L39: 27.94004985
B40: 4 | C40: 3 | E40: =$C$9*(B40-$C$17)^$C$13 -> -3.8972248 | F40: =IF(B40>$C$17,SUM(C40:E40),IF(B40>$C$15,SUM(C40:D40),C40)) -> 3 | H40: -1.953181265 | I40: 27.93179341 | K40: -1.953181265 | L40: 27.93179341
B41: 4.25 | C41: 3 | E41: =$C$9*(B41-$C$17)^$C$13 -> -3.8842748 | F41: =IF(B41>$C$17,SUM(C41:E41),IF(B41>$C$15,SUM(C41:D41),C41)) -> 3 | H41: -2.075037725 | I41: 27.92300518 | K41: -2.075037725 | L41: 27.92300518
B42: 4.5 | C42: 3 | E42: =$C$9*(B42-$C$17)^$C$13 -> -3.8713248 | F42: =IF(B42>$C$17,SUM(C42:E42),IF(B42>$C$15,SUM(C42:D42),C42)) -> 3 | H42: -2.19685468 | I42: 27.91368534 | K42: -2.19685468 | L42: 27.91368534
B43: 4.75 | C43: 3 | E43: =$C$9*(B43-$C$17)^$C$13 -> -3.8583748 | F43: =IF(B43>$C$17,SUM(C43:E43),IF(B43>$C$15,SUM(C43:D43),C43)) -> 3 | H43: -2.31862981 | I43: 27.90383407 | K43: -2.31862981 | L43: 27.90383407
B44: 5 | C44: 3 | D44: =-(($C$5*(B44-$C$15))^$C$11)*SIN(MIN(RADIANS(90),RADIANS((B44-$C$15)*90/$C$7))) -> 0 | E44: =$C$9*(B44-$C$17)^$C$13 -> -3.8454248 | F44: =IF(B44>$C$17,SUM(C44:E44),IF(B44>$C$15,SUM(C44:D44),C44)) -> 3 | H44: -2.440360797 | I44: 27.89345155 | K44: -2.440360797 | L44: 27.89345155
B45: 5.25 | C45: 3 | D45: =-(($C$5*(B45-$C$15))^$C$11)*SIN(MIN(RADIANS(90),RADIANS((B45-$C$15)*90/$C$7))) -> -0.009055695749 | E45: =$C$9*(B45-$C$17)^$C$13 -> -3.8324748 | F45: =IF(B45>$C$17,SUM(C45:E45),IF(B45>$C$15,SUM(C45:D45),C45)) -> 2.990944304 | H45: -2.561216712 | I45: 27.87352027 | K45: -2.562045323 | L45: 27.88253797
B46: 5.5 | C46: 3 | D46: -0.02262225489 | E46: =$C$9*(B46-$C$17)^$C$13 -> -3.8195248 | F46: =IF(B46>$C$17,SUM(C46:E46),IF(B46>$C$15,SUM(C46:D46),C46)) -> 2.977377745 | H46: -2.681512824 | I46: 27.84857545 | K46: -2.683681071 | L46: 27.87109355
B47: 5.75 | C47: 3 | D47: -0.03864335704 | E47: =$C$9*(B47-$C$17)^$C$13 -> -3.8065748 | F47: =IF(B47>$C$17,SUM(C47:E47),IF(B47>$C$15,SUM(C47:D47),C47)) -> 2.961356643 | H47: -2.801394122 | I47: 27.82066959 | K47: -2.805265725 | L47: 27.85911851
B48: 6 | C48: 3 | D48: -0.05649503386 | E48: =$C$9*(B48-$C$17)^$C$13 -> -3.7936248 | F48: =IF(B48>$C$17,SUM(C48:E48),IF(B48>$C$15,SUM(C48:D48),C48)) -> 2.943504966 | H48: -2.920891632 | I48: 27.79042752 | K48: -2.926796971 | L48: 27.84661307
B49: 6.25 | C49: 3 | D49: -0.07583831894 | E49: =$C$9*(B49-$C$17)^$C$13 -> -3.7806748 | F49: =IF(B49>$C$17,SUM(C49:E49),IF(B49>$C$15,SUM(C49:D49),C49)) -> 2.924161681 | H49: -3.040016215 | I49: 27.75818991 | K49: -3.048272496 | L49: 27.83357747
B50: 6.5 | C50: 3 | D50: -0.09645313576 | E50: =$C$9*(B50-$C$17)^$C$13 -> -3.7677248 | F50: =IF(B50>$C$17,SUM(C50:E50),IF(B50>$C$15,SUM(C50:D50),C50)) -> 2.903546864 | H50: -3.158771181 | I50: 27.72417884 | K50: -3.169689986 | L50: 27.82001196
B51: 6.75 | C51: 3 | D51: -0.1181819643 | E51: =$C$9*(B51-$C$17)^$C$13 -> -3.7547748 | F51: =IF(B51>$C$17,SUM(C51:E51),IF(B51>$C$15,SUM(C51:D51),C51)) -> 2.881818036 | H51: -3.277156328 | I51: 27.68855401 | K51: -3.291047129 | L51: 27.80591679
B52: 7 | C52: 3 | D52: -0.1409047417 | E52: =$C$9*(B52-$C$17)^$C$13 -> -3.7418248 | F52: =IF(B52>$C$17,SUM(C52:E52),IF(B52>$C$15,SUM(C52:D52),C52)) -> 2.859095258 | H52: -3.395169647 | I52: 27.65143779 | K52: -3.412341615 | L52: 27.79129225
B53: 7.25 | C53: 3 | D53: -0.1645257998 | E53: =$C$9*(B53-$C$17)^$C$13 -> -3.7288748 | F53: =IF(B53>$C$17,SUM(C53:E53),IF(B53>$C$15,SUM(C53:D53),C53)) -> 2.8354742 | H53: -3.512808149 | I53: 27.61292818 | K53: -3.533571136 | L53: 27.77613859
B54: 7.5 | C54: 3 | D54: -0.1889663315 | E54: =$C$9*(B54-$C$17)^$C$13 -> -3.7159248 | F54: =IF(B54>$C$17,SUM(C54:E54),IF(B54>$C$15,SUM(C54:D54),C54)) -> 2.811033668 | H54: -3.630068326 | I54: 27.57310642 | K54: -3.654733382 | L54: 27.76045612
B55: 7.75 | C55: 3 | D55: -0.2141597127 | E55: =$C$9*(B55-$C$17)^$C$13 -> -3.7029748 | F55: =IF(B55>$C$17,SUM(C55:E55),IF(B55>$C$15,SUM(C55:D55),C55)) -> 2.785840287 | H55: -3.746946411 | I55: 27.53204157 | K55: -3.775826048 | L55: 27.74424513
B56: 8 | C56: 3 | D56: -0.2400484318 | E56: =$C$9*(B56-$C$17)^$C$13 -> -3.6900248 | F56: =IF(B56>$C$17,SUM(C56:E56),IF(B56>$C$15,SUM(C56:D56),C56)) -> 2.759951568 | H56: =(F56+$I$21)*COS(RADIANS(B56+$I$22)) -> -3.863438542 | I56: =(F56+$I$21)*SIN(RADIANS(B56+$I$22)) -> 27.48979363 | K56: -3.896846827 | L56: 27.72750592
B57: 8.25 | C57: 3 | D57: -0.2665819838 | E57: =$C$9*(B57-$C$17)^$C$13 -> -3.6770748 | F57: =IF(B57>$C$17,SUM(C57:E57),IF(B57>$C$15,SUM(C57:D57),C57)) -> 2.733418016 | H57: -3.979540868 | I57: 27.4464156 | K57: -4.017793416 | L57: 27.71023883
B58: 8.5 | C58: 3 | D58: -0.2937153741 | E58: =$C$9*(B58-$C$17)^$C$13 -> -3.6641248 | F58: =IF(B58>$C$17,SUM(C58:E58),IF(B58>$C$15,SUM(C58:D58),C58)) -> 2.706284626 | H58: -4.095249615 | I58: 27.40195501 | K58: -4.138663512 | L58: 27.69244417
B59: 8.75 | C59: 3 | D59: -0.3214080252 | E59: =$C$9*(B59-$C$17)^$C$13 -> -3.6511748 | F59: =IF(B59>$C$17,SUM(C59:E59),IF(B59>$C$15,SUM(C59:D59),C59)) -> 2.678591975 | H59: -4.210561136 | I59: 27.35645497 | K59: -4.259454813 | L59: 27.67412229
B60: 9 | C60: 3 | D60: -0.3496229566 | E60: =$C$9*(B60-$C$17)^$C$13 -> -3.6382248 | F60: =IF(B60>$C$17,SUM(C60:E60),IF(B60>$C$15,SUM(C60:D60),C60)) -> 2.650377043 | H60: -4.325471941 | I60: 27.30995502 | K60: -4.380165021 | L60: 27.65527354
B61: 9.25 | C61: 3 | D61: -0.378326158 | E61: =$C$9*(B61-$C$17)^$C$13 -> -3.6252748 | F61: =IF(B61>$C$17,SUM(C61:E61),IF(B61>$C$15,SUM(C61:D61),C61)) -> 2.621673842 | H61: -4.43997872 | I61: 27.26249172 | K61: -4.500791837 | L61: 27.63589826
B62: 9.5 | C62: 3 | D62: -0.4074861015 | E62: =$C$9*(B62-$C$17)^$C$13 -> -3.6123248 | F62: =IF(B62>$C$17,SUM(C62:E62),IF(B62>$C$15,SUM(C62:D62),C62)) -> 2.592513899 | H62: -4.554078359 | I62: 27.21409917 | K62: -4.621332964 | L62: 27.61599684
B63: 9.75 | C63: 3 | D63: -0.4370733555 | E63: =$C$9*(B63-$C$17)^$C$13 -> -3.5993748 | F63: =IF(B63>$C$17,SUM(C63:E63),IF(B63>$C$15,SUM(C63:D63),C63)) -> 2.562926645 | H63: -4.667767952 | I63: 27.16480936 | K63: -4.741786108 | L63: 27.59556965
B64: 10 | C64: 3 | D64: -0.4670602755 | E64: =$C$9*(B64-$C$17)^$C$13 -> -3.5864248 | F64: =IF(B64>$C$17,SUM(C64:E64),IF(B64>$C$15,SUM(C64:D64),C64)) -> 2.532939725 | H64: -4.781044809 | I64: 27.1146525 | K64: -4.862148975 | L64: 27.57461708
B65: 10.25 | C65: 3 | D65: -0.4974207534 | E65: =$C$9*(B65-$C$17)^$C$13 -> -3.5734748 | F65: =IF(B65>$C$17,SUM(C65:E65),IF(B65>$C$15,SUM(C65:D65),C65)) -> 2.502579247 | H65: -4.893906461 | I65: 27.06365727 | K65: -4.982419273 | L65: 27.55313953
B66: 10.5 | C66: 3 | D66: -0.5281300118 | E66: =$C$9*(B66-$C$17)^$C$13 -> -3.5605248 | F66: =IF(B66>$C$17,SUM(C66:E66),IF(B66>$C$15,SUM(C66:D66),C66)) -> 2.471869988 | H66: -5.006350664 | I66: 27.01185099 | K66: -5.102594714 | L66: 27.53113741
B67: 10.75 | C67: 3 | D67: -0.5591644344 | E67: =$C$9*(B67-$C$17)^$C$13 -> -3.5475748 | F67: =IF(B67>$C$17,SUM(C67:E67),IF(B67>$C$15,SUM(C67:D67),C67)) -> 2.440835566 | H67: -5.118375401 | I67: 26.95925982 | K67: -5.222673008 | L67: 27.50861114
B68: 11 | C68: 3 | D68: -0.5905014235 | E68: =$C$9*(B68-$C$17)^$C$13 -> -3.5346248 | F68: =IF(B68>$C$17,SUM(C68:E68),IF(B68>$C$15,SUM(C68:D68),C68)) -> 2.409498577 | H68: -5.229978887 | I68: 26.90590889 | K68: -5.342651871 | L68: 27.48556114
B69: 11.25 | C69: 3 | D69: -0.6221192813 | E69: =$C$9*(B69-$C$17)^$C$13 -> -3.5216748 | F69: =IF(B69>$C$17,SUM(C69:E69),IF(B69>$C$15,SUM(C69:D69),C69)) -> 2.377880719 | H69: -5.341159566 | I69: 26.85182242 | K69: -5.462529016 | L69: 27.46198785
B70: =IF(B69+$B$21<90.00001,B69+$B$21,90) -> 11.5 | C70: 3 | D70: -0.6539971088 | E70: =$C$9*(B70-$C$17)^$C$13 -> -3.5087248 | F70: =IF(B70>$C$17,SUM(C70:E70),IF(B70>$C$15,SUM(C70:D70),C70)) -> 2.346002891 | H70: -5.451916111 | I70: 26.79702381 | K70: -5.582302164 | L70: 27.43789173
B71: =IF(B70+$B$21<90.00001,B70+$B$21,90) -> 11.75 | C71: 3 | D71: -0.6861147201 | E71: =$C$9*(B71-$C$17)^$C$13 -> -3.4957748 | F71: =IF(B71>$C$17,SUM(C71:E71),IF(B71>$C$15,SUM(C71:D71),C71)) -> 2.31388528 | H71: -5.562247429 | I71: 26.74153572 | K71: -5.701969032 | L71: 27.41327323
B72: 12 | C72: 3 | D72: -0.7184525682 | E72: =$C$9*(B72-$C$17)^$C$13 -> -3.4828248 | F72: =IF(B72>$C$17,SUM(C72:E72),IF(B72>$C$15,SUM(C72:D72),C72)) -> 2.281547432 | H72: -5.672152655 | I72: 26.68538016 | K72: -5.821527343 | L72: 27.38813282
B73: 12.25 | C73: 3 | D73: -0.7509916825 | E73: =$C$9*(B73-$C$17)^$C$13 -> -3.4698748 | F73: =IF(B73>$C$17,SUM(C73:E73),IF(B73>$C$15,SUM(C73:D73),C73)) -> 2.249008317 | H73: -5.781631153 | I73: 26.62857855 | K73: -5.94097482 | L73: 27.36247098
B74: 12.5 | C74: 3 | D74: -0.7837136135 | E74: =$C$9*(B74-$C$17)^$C$13 -> -3.4569248 | F74: =IF(B74>$C$17,SUM(C74:E74),IF(B74>$C$15,SUM(C74:D74),C74)) -> 2.216286386 | H74: -5.890682518 | I74: 26.57115173 | K74: -6.06030919 | L74: 27.3362882
B75: 12.75 | C75: 3 | D75: -0.8166003856 | E75: =$C$9*(B75-$C$17)^$C$13 -> -3.4439748 | F75: =IF(B75>$C$17,SUM(C75:E75),IF(B75>$C$15,SUM(C75:D75),C75)) -> 2.183399614 | H75: -5.99930657 | I75: 26.51312006 | K75: -6.179528181 | L75: 27.30958497
B76: 13 | C76: 3 | D76: -0.8496344555 | E76: =$C$9*(B76-$C$17)^$C$13 -> -3.4310248 | F76: =IF(B76>$C$17,SUM(C76:E76),IF(B76>$C$15,SUM(C76:D76),C76)) -> 2.150365545 | H76: -6.107503355 | I76: 26.45450343 | K76: -6.298629522 | L76: 27.28236181
B77: 13.25 | C77: 3 | D77: -0.882798676 | E77: =$C$9*(B77-$C$17)^$C$13 -> -3.4180748 | F77: =IF(B77>$C$17,SUM(C77:E77),IF(B77>$C$15,SUM(C77:D77),C77)) -> 2.117201324 | H77: -6.215273144 | I77: 26.39532132 | K77: -6.417610946 | L77: 27.25461924
B78: 13.5 | C78: 3 | D78: -0.9160762646 | E78: =$C$9*(B78-$C$17)^$C$13 -> -3.4051248 | F78: =IF(B78>$C$17,SUM(C78:E78),IF(B78>$C$15,SUM(C78:D78),C78)) -> 2.083923735 | H78: -6.322616431 | I78: 26.33559277 | K78: -6.536470188 | L78: 27.22635777
B79: 13.75 | C79: 3 | D79: -0.9494507754 | E79: =$C$9*(B79-$C$17)^$C$13 -> -3.3921748 | F79: =IF(B79>$C$17,SUM(C79:E79),IF(B79>$C$15,SUM(C79:D79),C79)) -> 2.050549225 | H79: -6.42953393 | I79: 26.27533647 | K79: -6.655204985 | L79: 27.19757795
B80: 14 | C80: 3 | D80: -0.9829060743 | E80: =$C$9*(B80-$C$17)^$C$13 -> -3.3792248 | F80: =IF(B80>$C$17,SUM(C80:E80),IF(B80>$C$15,SUM(C80:D80),C80)) -> 2.017093926 | H80: -6.536026576 | I80: 26.21457077 | K80: -6.773813077 | L80: 27.16828034
B81: 14.25 | C81: 3 | D81: -1.016426318 | E81: =$C$9*(B81-$C$17)^$C$13 -> -3.3662748 | F81: =IF(B81>$C$17,SUM(C81:E81),IF(B81>$C$15,SUM(C81:D81),C81)) -> 1.983573682 | H81: -6.64209552 | I81: 26.15331367 | K81: -6.892292205 | L81: 27.13846547
B82: 14.5 | C82: 3 | D82: -1.049995934 | E82: =$C$9*(B82-$C$17)^$C$13 -> -3.3533248 | F82: =IF(B82>$C$17,SUM(C82:E82),IF(B82>$C$15,SUM(C82:D82),C82)) -> 1.950004066 | H82: -6.747742127 | I82: 26.09158285 | K82: -7.010640114 | L82: 27.10813393
B83: 14.75 | C83: 3 | D83: -1.083599603 | E83: =$C$9*(B83-$C$17)^$C$13 -> -3.3403748 | F83: =IF(B83>$C$17,SUM(C83:E83),IF(B83>$C$15,SUM(C83:D83),C83)) -> 1.916400397 | H83: -6.85296798 | I83: 26.02939569 | K83: -7.12885455 | L83: 27.07728629
B84: 15 | C84: 3 | D84: -1.117222247 | E84: =$C$9*(B84-$C$17)^$C$13 -> -3.3274248 | F84: =IF(B84>$C$17,SUM(C84:E84),IF(B84>$C$15,SUM(C84:D84),C84)) -> 1.882777753 | H84: -6.957774868 | I84: 25.96676931 | K84: -7.246933263 | L84: 27.04592314
B85: 15.25 | C85: 3 | D85: -1.150849013 | E85: =$C$9*(B85-$C$17)^$C$13 -> -3.3144748 | F85: =IF(B85>$C$17,SUM(C85:E85),IF(B85>$C$15,SUM(C85:D85),C85)) -> 1.849150987 | H85: -7.062164791 | I85: 25.90372053 | K85: -7.364874005 | L85: 27.01404507
B86: 15.5 | C86: 3 | D86: -1.18446526 | E86: =$C$9*(B86-$C$17)^$C$13 -> -3.3015248 | F86: =IF(B86>$C$17,SUM(C86:E86),IF(B86>$C$15,SUM(C86:D86),C86)) -> 1.81553474 | H86: -7.166139958 | I86: 25.84026589 | K86: -7.48267453 | L86: 26.98165269
B87: 15.75 | C87: 3 | D87: -1.218056552 | E87: =$C$9*(B87-$C$17)^$C$13 -> -3.2885748 | F87: =IF(B87>$C$17,SUM(C87:E87),IF(B87>$C$15,SUM(C87:D87),C87)) -> 1.781943448 | H87: -7.269702778 | I87: 25.77642171 | K87: -7.600332596 | L87: 26.94874662
B88: 16 | C88: 3 | D88: -1.251608647 | E88: =$C$9*(B88-$C$17)^$C$13 -> -3.2756248 | F88: =IF(B88>$C$17,SUM(C88:E88),IF(B88>$C$15,SUM(C88:D88),C88)) -> 1.748391353 | H88: =(F88+$I$21)*COS(RADIANS(B88+$I$22)) -> -7.372855865 | I88: =(F88+$I$21)*SIN(RADIANS(B88+$I$22)) -> 25.71220404 | K88: -7.717845963 | L88: 26.91532749
B89: 16.25 | C89: =$C$3 -> 3 | D89: -1.285107488 | E89: =$C$9*(B89-$C$17)^$C$13 -> -3.2626748 | F89: =IF(B89>$C$17,SUM(C89:E89),IF(B89>$C$15,SUM(C89:D89),C89)) -> 1.714892512 | H89: -7.475602032 | I89: 25.64762867 | K89: =$L$21*COS(RADIANS(B89+$I$22)) -> -7.835212393 | L89: =$L$21*SIN(RADIANS(B89+$I$22)) -> 26.88139592
B90: 16.5 | C90: 3 | D90: -1.318539195 | E90: =$C$9*(B90-$C$17)^$C$13 -> -3.2497248 | F90: =IF(B90>$C$17,SUM(C90:E90),IF(B90>$C$15,SUM(C90:D90),C90)) -> 1.681460805 | H90: -7.577944288 | I90: 25.58271117 | K90: -7.952429652 | L90: 26.84695258
B91: 16.75 | C91: 3 | D91: -1.351890063 | E91: =$C$9*(B91-$C$17)^$C$13 -> -3.2367748 | F91: =IF(B91>$C$17,SUM(C91:E91),IF(B91>$C$15,SUM(C91:D91),C91)) -> 1.648109937 | H91: -7.679885837 | I91: 25.5174669 | K91: -8.069495508 | L91: 26.8119981
B92: 17 | C92: 3 | D92: -1.385146548 | E92: =$C$9*(B92-$C$17)^$C$13 -> -3.2238248 | F92: =IF(B92>$C$17,SUM(C92:E92),IF(B92>$C$15,SUM(C92:D92),C92)) -> 1.614853452 | H92: -7.781430075 | I92: 25.45191093 | K92: -8.186407732 | L92: 26.77653317
B93: 17.25 | C93: 3 | D93: -1.418295271 | E93: =$C$9*(B93-$C$17)^$C$13 -> -3.2108748 | F93: =IF(B93>$C$17,SUM(C93:E93),IF(B93>$C$15,SUM(C93:D93),C93)) -> 1.581704729 | H93: -7.882580586 | I93: 25.38605817 | K93: -8.303164099 | L93: 26.74055844
B94: 17.5 | C94: 3 | D94: -1.451323007 | E94: =$C$9*(B94-$C$17)^$C$13 -> -3.1979248 | F94: =IF(B94>$C$17,SUM(C94:E94),IF(B94>$C$15,SUM(C94:D94),C94)) -> 1.548676993 | H94: -7.983341141 | I94: 25.31992327 | K94: -8.419762386 | L94: 26.70407462
B95: 17.75 | C95: 3 | D95: -1.484216683 | E95: =$C$9*(B95-$C$17)^$C$13 -> -3.1849748 | F95: =IF(B95>$C$17,SUM(C95:E95),IF(B95>$C$15,SUM(C95:D95),C95)) -> 1.515783317 | H95: -8.083715694 | I95: 25.25352066 | K95: -8.536200373 | L95: 26.66708239
B96: 18 | C96: 3 | D96: -1.516963374 | E96: =$C$9*(B96-$C$17)^$C$13 -> -3.1720248 | F96: =IF(B96>$C$17,SUM(C96:E96),IF(B96>$C$15,SUM(C96:D96),C96)) -> 1.483036626 | H96: -8.18370838 | I96: 25.18686455 | K96: -8.652475842 | L96: 26.62958246
B97: 18.25 | C97: 3 | D97: -1.549550303 | E97: =$C$9*(B97-$C$17)^$C$13 -> -3.1590748 | F97: =IF(B97>$C$17,SUM(C97:E97),IF(B97>$C$15,SUM(C97:D97),C97)) -> 1.450449697 | H97: -8.28332351 | I97: 25.11996896 | K97: -8.768586582 | L97: 26.59157553
B98: 18.5 | C98: 3 | D98: -1.581964834 | E98: =$C$9*(B98-$C$17)^$C$13 -> -3.1461248 | F98: =IF(B98>$C$17,SUM(C98:E98),IF(B98>$C$15,SUM(C98:D98),C98)) -> 1.418035166 | H98: -8.382565571 | I98: 25.05284767 | K98: -8.884530379 | L98: 26.55306235
B99: 18.75 | C99: 3 | D99: -1.614194472 | E99: =$C$9*(B99-$C$17)^$C$13 -> -3.1331748 | F99: =IF(B99>$C$17,SUM(C99:E99),IF(B99>$C$15,SUM(C99:D99),C99)) -> 1.385805528 | H99: -8.481439221 | I99: 24.98551425 | K99: -9.000305028 | L99: 26.51404363
B100: 19 | C100: 3 | D100: -1.64622686 | E100: =$C$9*(B100-$C$17)^$C$13 -> -3.1202248 | F100: =IF(B100>$C$17,SUM(C100:E100),IF(B100>$C$15,SUM(C100:D100),C100)) -> 1.35377314 | H100: -8.579949284 | I100: 24.91798204 | K100: -9.115908325 | L100: 26.47452012
B101: 19.25 | C101: 3 | D101: -1.67804978 | E101: =$C$9*(B101-$C$17)^$C$13 -> -3.1072748 | F101: =IF(B101>$C$17,SUM(C101:E101),IF(B101>$C$15,SUM(C101:D101),C101)) -> 1.32195022 | H101: -8.678100753 | I101: 24.8502642 | K101: -9.231338067 | L101: 26.43449257
B102: 19.5 | C102: 3 | D102: -1.709651148 | E102: =$C$9*(B102-$C$17)^$C$13 -> -3.0943248 | F102: =IF(B102>$C$17,SUM(C102:E102),IF(B102>$C$15,SUM(C102:D102),C102)) -> 1.290348852 | H102: -8.775898779 | I102: 24.78237364 | K102: -9.346592059 | L102: 26.39396175
B103: 19.75 | C103: 3 | D103: -1.741019015 | E103: =$C$9*(B103-$C$17)^$C$13 -> -3.0813748 | F103: =IF(B103>$C$17,SUM(C103:E103),IF(B103>$C$15,SUM(C103:D103),C103)) -> 1.258980985 | H103: -8.873348673 | I103: 24.71432309 | K103: -9.461668104 | L103: 26.35292843
B104: 20 | C104: 3 | D104: -1.772141565 | E104: =$C$9*(B104-$C$17)^$C$13 -> -3.0684248 | F104: =IF(B104>$C$17,SUM(C104:E104),IF(B104>$C$15,SUM(C104:D104),C104)) -> 1.227858435 | H104: -8.970455901 | I104: 24.64612503 | K104: -9.576564013 | L104: 26.31139338
B105: 20.25 | C105: 3 | D105: -1.803007117 | E105: =$C$9*(B105-$C$17)^$C$13 -> -3.0554748 | F105: =IF(B105>$C$17,SUM(C105:E105),IF(B105>$C$15,SUM(C105:D105),C105)) -> 1.196992883 | H105: -9.067226081 | I105: 24.57779175 | K105: -9.691277598 | L105: 26.26935741
B106: 20.5 | C106: 3 | D106: -1.833604121 | E106: =$C$9*(B106-$C$17)^$C$13 -> -3.0425248 | F106: =IF(B106>$C$17,SUM(C106:E106),IF(B106>$C$15,SUM(C106:D106),C106)) -> 1.166395879 | H106: -9.163664978 | I106: 24.50933531 | K106: -9.805806675 | L106: 26.2268213
B107: 20.75 | C107: 3 | D107: -1.86392116 | E107: =$C$9*(B107-$C$17)^$C$13 -> -3.0295748 | F107: =IF(B107>$C$17,SUM(C107:E107),IF(B107>$C$15,SUM(C107:D107),C107)) -> 1.13607884 | H107: -9.259778501 | I107: 24.44076757 | K107: -9.920149064 | L107: 26.18378587
B108: 21 | C108: 3 | D108: -1.893946948 | E108: =$C$9*(B108-$C$17)^$C$13 -> -3.0166248 | F108: =IF(B108>$C$17,SUM(C108:E108),IF(B108>$C$15,SUM(C108:D108),C108)) -> 1.106053052 | H108: -9.355572703 | I108: 24.37210014 | K108: -10.03430259 | L108: 26.14025194
B109: 21.25 | C109: 3 | D109: =-(($C$5*(B109-$C$15))^$C$11)*SIN(MIN(RADIANS(90),RADIANS((B109-$C$15)*90/$C$7))) -> -1.923670331 | E109: =$C$9*(B109-$C$17)^$C$13 -> -3.0036748 | F109: =IF(B109>$C$17,SUM(C109:E109),IF(B109>$C$15,SUM(C109:D109),C109)) -> 1.076329669 | H109: -9.451053771 | I109: 24.30334445 | K109: -10.14826507 | L109: 26.09622034
B110: 21.5 | C110: 3 | D110: -1.95308029 | E110: =$C$9*(B110-$C$17)^$C$13 -> -2.9907248 | F110: =IF(B110>$C$17,SUM(C110:E110),IF(B110>$C$15,SUM(C110:D110),C110)) -> 1.04691971 | H110: -9.546228026 | I110: 24.23451169 | K110: -10.26203435 | L110: 26.0516919
B111: 21.75 | C111: 3 | D111: -1.982165934 | E111: =$C$9*(B111-$C$17)^$C$13 -> -2.9777748 | F111: =IF(B111>$C$17,SUM(C111:E111),IF(B111>$C$15,SUM(C111:D111),C111)) -> 1.017834066 | H111: -9.641101921 | I111: 24.16561283 | K111: -10.37560825 | L111: 26.00666748
B112: 22 | C112: 3 | D112: -2.010916508 | E112: =$C$9*(B112-$C$17)^$C$13 -> -2.9648248 | F112: =IF(B112>$C$17,SUM(C112:E112),IF(B112>$C$15,SUM(C112:D112),C112)) -> 0.9890834922 | H112: -9.735682033 | I112: 24.09665861 | K112: -10.48898462 | L112: 25.96114793
B113: 22.25 | C113: 3 | D113: -2.039321389 | E113: =$C$9*(B113-$C$17)^$C$13 -> -2.9518748 | F113: =IF(B113>$C$17,SUM(C113:E113),IF(B113>$C$15,SUM(C113:D113),C113)) -> 0.960678611 | H113: -9.829975062 | I113: 24.02765957 | K113: -10.60216129 | L113: 25.91513411
B114: 22.5 | C114: 3 | D114: -2.067370088 | E114: =$C$9*(B114-$C$17)^$C$13 -> -2.9389248 | F114: =IF(B114>$C$17,SUM(C114:E114),IF(B114>$C$15,SUM(C114:D114),C114)) -> 0.9326299115 | H114: -9.923987825 | I114: 23.958626 | K114: -10.71513611 | L114: 25.86862691
B115: 22.75 | C115: 3 | D115: -2.095052251 | E115: =$C$9*(B115-$C$17)^$C$13 -> -2.9259748 | F115: =IF(B115>$C$17,SUM(C115:E115),IF(B115>$C$15,SUM(C115:D115),C115)) -> 0.9049477485 | H115: =(F115+$I$21)*COS(RADIANS(B115+$I$22)) -> -10.01772725 | I115: =(F115+$I$21)*SIN(RADIANS(B115+$I$22)) -> 23.88956798 | K115: -10.82790693 | L115: 25.82162721
B116: 23 | C116: 3 | D116: -2.122357658 | E116: =$C$9*(B116-$C$17)^$C$13 -> -2.9130248 | F116: =IF(B116>$C$17,SUM(C116:E116),IF(B116>$C$15,SUM(C116:D116),C116)) -> 0.8776423415 | H116: -10.11120039 | I116: 23.82049537 | K116: -10.9404716 | L116: 25.7741359
B117: 23.25 | C117: 3 | D117: -2.149276226 | E117: =$C$9*(B117-$C$17)^$C$13 -> -2.9000748 | F117: =IF(B117>$C$17,SUM(C117:E117),IF(B117>$C$15,SUM(C117:D117),C117)) -> 0.8507237742 | H117: -10.20441439 | I117: 23.75141778 | K117: -11.05282798 | L117: 25.72615388
B118: 23.5 | C118: 3 | D118: -2.175798006 | E118: =$C$9*(B118-$C$17)^$C$13 -> -2.8871248 | F118: =IF(B118>$C$17,SUM(C118:E118),IF(B118>$C$15,SUM(C118:D118),C118)) -> 0.8242019937 | H118: -10.2973765 | I118: 23.6823446 | K118: -11.16497393 | L118: 25.67768208
B119: 23.75 | C119: 3 | D119: -2.201913191 | E119: =$C$9*(B119-$C$17)^$C$13 -> -2.8741748 | F119: =IF(B119>$C$17,SUM(C119:E119),IF(B119>$C$15,SUM(C119:D119),C119)) -> 0.7980868094 | H119: -10.39009407 | I119: 23.613285 | K119: -11.27690732 | L119: 25.62872142
B120: 24 | C120: 3 | D120: -2.227612107 | E120: =$C$9*(B120-$C$17)^$C$13 -> -2.8612248 | F120: =IF(B120>$C$17,SUM(C120:E120),IF(B120>$C$15,SUM(C120:D120),C120)) -> 0.7723878925 | H120: -10.48257454 | I120: 23.54424789 | K120: -11.38862601 | L120: 25.57927281
B121: 24.25 | C121: 3 | D121: -2.252885225 | E121: =$C$9*(B121-$C$17)^$C$13 -> -2.8482748 | F121: =IF(B121>$C$17,SUM(C121:E121),IF(B121>$C$15,SUM(C121:D121),C121)) -> 0.7471147747 | H121: -10.57482544 | I121: 23.47524198 | K121: -11.50012787 | L121: 25.52933722
B122: 24.5 | C122: 3 | D122: -2.277723153 | E122: =$C$9*(B122-$C$17)^$C$13 -> -2.8353248 | F122: =IF(B122>$C$17,SUM(C122:E122),IF(B122>$C$15,SUM(C122:D122),C122)) -> 0.7222768471 | H122: -10.66685439 | I122: 23.40627573 | K122: -11.61141079 | L122: 25.47891558
B123: 24.75 | C123: 3 | D123: -2.302116641 | E123: =$C$9*(B123-$C$17)^$C$13 -> -2.8223748 | F123: =IF(B123>$C$17,SUM(C123:E123),IF(B123>$C$15,SUM(C123:D123),C123)) -> 0.6978833594 | H123: -10.7586691 | I123: 23.33735735 | K123: -11.72247265 | L123: 25.42800887
B124: 25 | C124: 3 | D124: -2.326056581 | E124: =$C$9*(B124-$C$17)^$C$13 -> -2.8094248 | F124: =IF(B124>$C$17,SUM(C124:E124),IF(B124>$C$15,SUM(C124:D124),C124)) -> 0.6739434188 | H124: -10.85027734 | I124: 23.26849484 | K124: -11.83331133 | L124: 25.37661804
B125: 25.25 | C125: 3 | D125: -2.349534011 | E125: =$C$9*(B125-$C$17)^$C$13 -> -2.7964748 | F125: =IF(B125>$C$17,SUM(C125:E125),IF(B125>$C$15,SUM(C125:D125),C125)) -> 0.6504659888 | H125: -10.94168695 | I125: 23.19969595 | K125: -11.94392472 | L125: 25.32474407
B126: 25.5 | C126: 3 | D126: -2.372540112 | E126: =$C$9*(B126-$C$17)^$C$13 -> -2.7835248 | F126: =IF(B126>$C$17,SUM(C126:E126),IF(B126>$C$15,SUM(C126:D126),C126)) -> 0.6274598882 | H126: -11.03290586 | I126: 23.13096817 | K126: -12.05431071 | L126: 25.27238796
B127: 25.75 | C127: 3 | D127: -2.39506621 | E127: =$C$9*(B127-$C$17)^$C$13 -> -2.7705748 | F127: =IF(B127>$C$17,SUM(C127:E127),IF(B127>$C$15,SUM(C127:D127),C127)) -> 0.6049337898 | H127: -11.12394205 | I127: 23.06231878 | K127: -12.16446721 | L127: 25.2195507
B128: 26 | C128: 3 | D128: -2.417103781 | E128: =$C$9*(B128-$C$17)^$C$13 -> -2.7576248 | F128: =IF(B128>$C$17,SUM(C128:E128),IF(B128>$C$15,SUM(C128:D128),C128)) -> 0.5828962194 | H128: -11.21480355 | I128: 22.99375481 | K128: -12.27439211 | L128: 25.1662333
B129: 26.25 | C129: 3 | D129: -2.438644446 | E129: =$C$9*(B129-$C$17)^$C$13 -> -2.7446748 | F129: =IF(B129>$C$17,SUM(C129:E129),IF(B129>$C$15,SUM(C129:D129),C129)) -> 0.5613555544 | H129: -11.30549847 | I129: 22.92528303 | K129: -12.38408333 | L129: 25.11243676
B130: 26.5 | C130: 3 | D130: -2.459679977 | E130: =$C$9*(B130-$C$17)^$C$13 -> -2.7317248 | F130: =IF(B130>$C$17,SUM(C130:E130),IF(B130>$C$15,SUM(C130:D130),C130)) -> 0.5403200231 | H130: -11.39603494 | I130: 22.85691 | K130: -12.49353877 | L130: 25.05816212
B131: 26.75 | C131: 3 | D131: -2.480202297 | E131: =$C$9*(B131-$C$17)^$C$13 -> -2.7187748 | F131: =IF(B131>$C$17,SUM(C131:E131),IF(B131>$C$15,SUM(C131:D131),C131)) -> 0.519797703 | H131: -11.48642116 | I131: 22.78864199 | K131: -12.60275635 | L131: 25.00341042
B132: 27 | C132: 3 | D132: -2.50020348 | E132: =$C$9*(B132-$C$17)^$C$13 -> -2.7058248 | F132: =IF(B132>$C$17,SUM(C132:E132),IF(B132>$C$15,SUM(C132:D132),C132)) -> 0.4997965198 | H132: -11.57666537 | I132: 22.72048506 | K132: -12.71173399 | L132: 24.94818268
B133: 27.25 | C133: 3 | D133: -2.519675754 | E133: =$C$9*(B133-$C$17)^$C$13 -> -2.6928748 | F133: =IF(B133>$C$17,SUM(C133:E133),IF(B133>$C$15,SUM(C133:D133),C133)) -> 0.4803242463 | H133: -11.66677582 | I133: 22.65244503 | K133: -12.82046962 | L133: 24.89247996
B134: 27.5 | C134: 3 | D134: -2.538611499 | E134: =$C$9*(B134-$C$17)^$C$13 -> -2.6799248 | F134: =IF(B134>$C$17,SUM(C134:E134),IF(B134>$C$15,SUM(C134:D134),C134)) -> 0.4613885012 | H134: -11.75676083 | I134: 22.58452743 | K134: -12.92896117 | L134: 24.83630333
B135: =IF(B134+$B$21<90.00001,B134+$B$21,90) -> 27.75 | C135: 3 | D135: -2.557003252 | E135: =$C$9*(B135-$C$17)^$C$13 -> -2.6669748 | F135: =IF(B135>$C$17,SUM(C135:E135),IF(B135>$C$15,SUM(C135:D135),C135)) -> 0.4429967478 | H135: -11.84662873 | I135: 22.51673758 | K135: -13.03720657 | L135: 24.77965385
B136: 28 | C136: 3 | D136: -2.574843707 | E136: =$C$9*(B136-$C$17)^$C$13 -> -2.6540248 | F136: =IF(B136>$C$17,SUM(C136:E136),IF(B136>$C$15,SUM(C136:D136),C136)) -> 0.4251562928 | H136: -11.93638786 | I136: 22.44908055 | K136: -13.14520376 | L136: 24.7225326
B137: 28.25 | C137: 3 | D137: -2.592125715 | E137: =$C$9*(B137-$C$17)^$C$13 -> -2.6410748 | F137: =IF(B137>$C$17,SUM(C137:E137),IF(B137>$C$15,SUM(C137:D137),C137)) -> 0.4078742853 | H137: -12.0260466 | I137: 22.38156114 | K137: -13.25295068 | L137: 24.66494067
B138: 28.5 | C138: 3 | D138: -2.608842284 | E138: =$C$9*(B138-$C$17)^$C$13 -> -2.6281248 | F138: =IF(B138>$C$17,SUM(C138:E138),IF(B138>$C$15,SUM(C138:D138),C138)) -> 0.3911577156 | H138: -12.11561334 | I138: 22.31418391 | K138: -13.36044529 | L138: 24.60687915
B139: 28.75 | C139: 3 | D139: -2.624986586 | E139: =$C$9*(B139-$C$17)^$C$13 -> -2.6151748 | F139: =IF(B139>$C$17,SUM(C139:E139),IF(B139>$C$15,SUM(C139:D139),C139)) -> 0.3750134138 | H139: -12.20509646 | I139: 22.24695319 | K139: -13.46768553 | L139: 24.54834916
B140: 29 | C140: 3 | D140: -2.640551951 | E140: =$C$9*(B140-$C$17)^$C$13 -> -2.6022248 | F140: =IF(B140>$C$17,SUM(C140:E140),IF(B140>$C$15,SUM(C140:D140),C140)) -> 0.3594480492 | H140: -12.29450438 | I140: 22.17987303 | K140: -13.57466937 | L140: 24.4893518
B141: 29.25 | C141: 3 | D141: -2.655531872 | E141: =$C$9*(B141-$C$17)^$C$13 -> -2.5892748 | F141: =IF(B141>$C$17,SUM(C141:E141),IF(B141>$C$15,SUM(C141:D141),C141)) -> 0.3444681283 | H141: -12.38384548 | I141: 22.11294724 | K141: -13.68139476 | L141: 24.4298882
B142: 29.5 | C142: 3 | D142: -2.669920005 | E142: =$C$9*(B142-$C$17)^$C$13 -> -2.5763248 | F142: =IF(B142>$C$17,SUM(C142:E142),IF(B142>$C$15,SUM(C142:D142),C142)) -> 0.3300799947 | H142: -12.47312817 | I142: 22.0461794 | K142: -13.78785968 | L142: 24.36995949
B143: 29.75 | C143: 3 | D143: -2.683710173 | E143: =$C$9*(B143-$C$17)^$C$13 -> -2.5633748 | F143: =IF(B143>$C$17,SUM(C143:E143),IF(B143>$C$15,SUM(C143:D143),C143)) -> 0.3162898271 | H143: -12.56236082 | I143: 21.97957282 | K143: -13.8940621 | L143: 24.30956681
B144: 30 | C144: 3 | D144: -2.696896361 | E144: =$C$9*(B144-$C$17)^$C$13 -> -2.5504248 | F144: =IF(B144>$C$17,SUM(C144:E144),IF(B144>$C$15,SUM(C144:D144),C144)) -> 0.303103639 | H144: =(F144+$I$21)*COS(RADIANS(B144+$I$22)) -> -12.65155182 | I144: =(F144+$I$21)*SIN(RADIANS(B144+$I$22)) -> 21.91313055 | K144: -14 | L144: 24.24871131
B145: 30.25 | C145: 3 | D145: -2.709472723 | E145: =$C$9*(B145-$C$17)^$C$13 -> -2.5374748 | F145: =IF(B145>$C$17,SUM(C145:E145),IF(B145>$C$15,SUM(C145:D145),C145)) -> 0.290527277 | H145: -12.74070951 | I145: 21.84685541 | K145: -14.10567136 | L145: 24.18739415
B146: 30.5 | C146: 3 | D146: -2.72143358 | E146: =$C$9*(B146-$C$17)^$C$13 -> -2.5245248 | F146: =IF(B146>$C$17,SUM(C146:E146),IF(B146>$C$15,SUM(C146:D146),C146)) -> 0.2785664201 | H146: -12.82984222 | I146: 21.78074996 | K146: -14.21107416 | L146: 24.12561649
B147: 30.75 | C147: 3 | D147: -2.732773422 | E147: =$C$9*(B147-$C$17)^$C$13 -> -2.5115748 | F147: =IF(B147>$C$17,SUM(C147:E147),IF(B147>$C$15,SUM(C147:D147),C147)) -> 0.2672265785 | H147: -12.91895825 | I147: 21.71481652 | K147: -14.31620641 | L147: 24.06337952
B148: 31 | C148: 3 | D148: -2.743486907 | E148: =$C$9*(B148-$C$17)^$C$13 -> -2.4986248 | F148: =IF(B148>$C$17,SUM(C148:E148),IF(B148>$C$15,SUM(C148:D148),C148)) -> 0.2565130929 | H148: -13.00806588 | I148: 21.64905715 | K148: -14.4210661 | L148: 24.00068442
B149: 31.25 | C149: 3 | D149: -2.753568867 | E149: =$C$9*(B149-$C$17)^$C$13 -> -2.4856748 | F149: =IF(B149>$C$17,SUM(C149:E149),IF(B149>$C$15,SUM(C149:D149),C149)) -> 0.2464311332 | H149: -13.09717334 | I149: 21.58347367 | K149: -14.52565123 | L149: 23.93753238
B150: 31.5 | C150: 3 | D150: -2.763014302 | E150: =$C$9*(B150-$C$17)^$C$13 -> -2.4727248 | F150: =IF(B150>$C$17,SUM(C150:E150),IF(B150>$C$15,SUM(C150:D150),C150)) -> 0.2369856977 | H150: -13.1862888 | I150: 21.51806763 | K150: -14.62995981 | L150: 23.8739246
B151: 31.75 | C151: 3 | D151: -2.771818388 | E151: =$C$9*(B151-$C$17)^$C$13 -> -2.4597748 | F151: =IF(B151>$C$17,SUM(C151:E151),IF(B151>$C$15,SUM(C151:D151),C151)) -> 0.2281816122 | H151: -13.27542043 | I151: 21.45284037 | K151: -14.73398986 | L151: 23.8098623
B152: 32 | C152: 3 | D152: -2.78013096 | E152: =$C$9*(B152-$C$17)^$C$13 -> -2.4468248 | F152: =IF(B152>$C$17,SUM(C152:E152),IF(B152>$C$15,SUM(C152:D152),C152)) -> 0.2198690396 | H152: -13.36449445 | I152: 21.38766192 | K152: -14.8377394 | L152: 23.74534669
B153: 32.25 | C153: =$C$3 -> 3 | D153: -2.788368286 | E153: =$C$9*(B153-$C$17)^$C$13 -> -2.4338748 | F153: =IF(B153>$C$17,SUM(C153:E153),IF(B153>$C$15,SUM(C153:D153),C153)) -> 0.2116317143 | H153: -13.45329265 | I153: 21.32217837 | K153: =$L$21*COS(RADIANS(B153+$I$22)) -> -14.94120645 | L153: =$L$21*SIN(RADIANS(B153+$I$22)) -> 23.68037901
B154: 32.5 | C154: 3 | D154: -2.796554456 | E154: =$C$9*(B154-$C$17)^$C$13 -> -2.4209248 | F154: =IF(B154>$C$17,SUM(C154:E154),IF(B154>$C$15,SUM(C154:D154),C154)) -> 0.2034455436 | H154: -13.54180142 | I154: 21.25637038 | K154: -15.04438903 | L154: 23.61496048
B155: 32.75 | C155: 3 | D155: -2.804690251 | E155: =$C$9*(B155-$C$17)^$C$13 -> -2.4079748 | F155: =IF(B155>$C$17,SUM(C155:E155),IF(B155>$C$15,SUM(C155:D155),C155)) -> 0.1953097492 | H155: -13.63001937 | I155: 21.19023844 | K155: -15.1472852 | L155: 23.54909236
B156: 33 | C156: 3 | D156: -2.812776429 | E156: =$C$9*(B156-$C$17)^$C$13 -> -2.3950248 | F156: =IF(B156>$C$17,SUM(C156:E156),IF(B156>$C$15,SUM(C156:D156),C156)) -> 0.1872235714 | H156: -13.71794514 | I156: 21.1237831 | K156: -15.24989298 | L156: 23.4827759
B157: 33.25 | C157: 3 | D157: -2.820813731 | E157: =$C$9*(B157-$C$17)^$C$13 -> -2.3820748 | F157: =IF(B157>$C$17,SUM(C157:E157),IF(B157>$C$15,SUM(C157:D157),C157)) -> 0.1791862687 | H157: -13.80557736 | I157: 21.05700489 | K157: -15.35221043 | L157: 23.41601236
B158: 33.5 | C158: 3 | D158: -2.828802883 | E158: =$C$9*(B158-$C$17)^$C$13 -> -2.3691248 | F158: =IF(B158>$C$17,SUM(C158:E158),IF(B158>$C$15,SUM(C158:D158),C158)) -> 0.1711971169 | H158: -13.89291465 | I158: 20.9899044 | K158: -15.45423559 | L158: 23.34880302
B159: 33.75 | C159: 3 | D159: -2.836744591 | E159: =$C$9*(B159-$C$17)^$C$13 -> -2.3561748 | F159: =IF(B159>$C$17,SUM(C159:E159),IF(B159>$C$15,SUM(C159:D159),C159)) -> 0.163255409 | H159: -13.97995567 | I159: 20.92248222 | K159: -15.55596652 | L159: 23.28114914
B160: 34 | C160: 3 | D160: -2.844639546 | E160: =$C$9*(B160-$C$17)^$C$13 -> -2.3432248 | F160: =IF(B160>$C$17,SUM(C160:E160),IF(B160>$C$15,SUM(C160:D160),C160)) -> 0.1553604543 | H160: -14.06669905 | I160: 20.85473897 | K160: -15.6574013 | L160: 23.21305203
B161: 34.25 | C161: 3 | D161: -2.852488422 | E161: =$C$9*(B161-$C$17)^$C$13 -> -2.3302748 | F161: =IF(B161>$C$17,SUM(C161:E161),IF(B161>$C$15,SUM(C161:D161),C161)) -> 0.1475115781 | H161: -14.15314344 | I161: 20.78667529 | K161: -15.75853798 | L161: 23.14451298
B162: 34.5 | C162: 3 | D162: -2.860291879 | E162: =$C$9*(B162-$C$17)^$C$13 -> -2.3173248 | F162: =IF(B162>$C$17,SUM(C162:E162),IF(B162>$C$15,SUM(C162:D162),C162)) -> 0.1397081211 | H162: -14.23928747 | I162: 20.71829184 | K162: -15.85937463 | L162: 23.07553328
B163: 34.75 | C163: 3 | D163: -2.868050561 | E163: =$C$9*(B163-$C$17)^$C$13 -> -2.3043748 | F163: =IF(B163>$C$17,SUM(C163:E163),IF(B163>$C$15,SUM(C163:D163),C163)) -> 0.1319494388 | H163: -14.32512982 | I163: 20.6495893 | K163: -15.95990935 | L163: 23.00611426
B164: 35 | C164: 3 | D164: -2.875765099 | E164: =$C$9*(B164-$C$17)^$C$13 -> -2.2914248 | F164: =IF(B164>$C$17,SUM(C164:E164),IF(B164>$C$15,SUM(C164:D164),C164)) -> 0.1242349012 | H164: -14.41066912 | I164: 20.58056838 | K164: -16.06014022 | L164: 22.93625724
B165: 35.25 | C165: 3 | D165: -2.883436108 | E165: =$C$9*(B165-$C$17)^$C$13 -> -2.2784748 | F165: =IF(B165>$C$17,SUM(C165:E165),IF(B165>$C$15,SUM(C165:D165),C165)) -> 0.1165638925 | H165: -14.49590404 | I165: 20.5112298 | K165: -16.16006532 | L165: 22.86596354
B166: 35.5 | C166: 3 | D166: -2.89106419 | E166: =$C$9*(B166-$C$17)^$C$13 -> -2.2655248 | F166: =IF(B166>$C$17,SUM(C166:E166),IF(B166>$C$15,SUM(C166:D166),C166)) -> 0.1089358103 | H166: -14.58083324 | I166: 20.44157429 | K166: -16.25968276 | L166: 22.79523451
B167: 35.75 | C167: 3 | D167: -2.898649935 | E167: =$C$9*(B167-$C$17)^$C$13 -> -2.2525748 | F167: =IF(B167>$C$17,SUM(C167:E167),IF(B167>$C$15,SUM(C167:D167),C167)) -> 0.1013500654 | H167: -14.66545538 | I167: 20.37160263 | K167: -16.35899064 | L167: 22.7240715
B168: 36 | C168: 3 | D168: -2.906193918 | E168: =$C$9*(B168-$C$17)^$C$13 -> -2.2396248 | F168: =IF(B168>$C$17,SUM(C168:E168),IF(B168>$C$15,SUM(C168:D168),C168)) -> 0.09380608155 | H168: -14.74976914 | I168: 20.30131557 | K168: -16.45798706 | L168: 22.65247584
B169: 36.25 | C169: 3 | D169: -2.913696705 | E169: =$C$9*(B169-$C$17)^$C$13 -> -2.2266748 | F169: =IF(B169>$C$17,SUM(C169:E169),IF(B169>$C$15,SUM(C169:D169),C169)) -> 0.0863032948 | H169: -14.83377318 | I169: 20.23071393 | K169: -16.55667015 | L169: 22.58044892
B170: 36.5 | C170: 3 | D170: -2.921158847 | E170: =$C$9*(B170-$C$17)^$C$13 -> -2.2137248 | F170: =IF(B170>$C$17,SUM(C170:E170),IF(B170>$C$15,SUM(C170:D170),C170)) -> 0.07884115329 | H170: -14.91746618 | I170: 20.15979852 | K170: -16.65503803 | L170: 22.5079921
B171: 36.75 | C171: 3 | D171: -2.928580883 | E171: =$C$9*(B171-$C$17)^$C$13 -> -2.2007748 | F171: =IF(B171>$C$17,SUM(C171:E171),IF(B171>$C$15,SUM(C171:D171),C171)) -> 0.07141911683 | H171: -15.00084683 | I171: 20.08857016 | K171: -16.75308882 | L171: 22.43510676
B172: 37 | C172: 3 | D172: -2.935963343 | E172: =$C$9*(B172-$C$17)^$C$13 -> -2.1878248 | F172: =IF(B172>$C$17,SUM(C172:E172),IF(B172>$C$15,SUM(C172:D172),C172)) -> 0.06403665662 | H172: -15.0839138 | I172: 20.0170297 | K172: -16.85082065 | L172: 22.36179428
B173: 37.25 | C173: 3 | D173: =-(($C$5*(B173-$C$15))^$C$11)*SIN(MIN(RADIANS(90),RADIANS((B173-$C$15)*90/$C$7))) -> -2.943306745 | E173: =$C$9*(B173-$C$17)^$C$13 -> -2.1748748 | F173: =IF(B173>$C$17,SUM(C173:E173),IF(B173>$C$15,SUM(C173:D173),C173)) -> 0.0566932549 | H173: -15.16666579 | I173: 19.94517801 | K173: -16.94823167 | L173: 22.28805607
B174: 37.5 | C174: 3 | D174: -2.950611595 | E174: =$C$9*(B174-$C$17)^$C$13 -> -2.1619248 | F174: =IF(B174>$C$17,SUM(C174:E174),IF(B174>$C$15,SUM(C174:D174),C174)) -> 0.04938840463 | H174: -15.24910148 | I174: 19.87301596 | K174: -17.04532001 | L174: 22.21389353
B175: 37.75 | C175: 3 | D175: -2.957878391 | E175: =$C$9*(B175-$C$17)^$C$13 -> -2.1489748 | F175: =IF(B175>$C$17,SUM(C175:E175),IF(B175>$C$15,SUM(C175:D175),C175)) -> 0.04212160919 | H175: -15.33121958 | I175: 19.80054446 | K175: -17.14208384 | L175: 22.13930806
B176: 38 | C176: 3 | D176: -2.965107618 | E176: =$C$9*(B176-$C$17)^$C$13 -> -2.1360248 | F176: =IF(B176>$C$17,SUM(C176:E176),IF(B176>$C$15,SUM(C176:D176),C176)) -> 0.03489238209 | H176: -15.41301878 | I176: 19.72776441 | K176: -17.23852131 | L176: 22.0643011
B177: 38.25 | C177: 3 | D177: -2.972299753 | E177: =$C$9*(B177-$C$17)^$C$13 -> -2.1230748 | F177: =IF(B177>$C$17,SUM(C177:E177),IF(B177>$C$15,SUM(C177:D177),C177)) -> 0.02770024669 | H177: -15.49449779 | I177: 19.65467674 | K177: -17.33463058 | L177: 21.98887406
B178: 38.5 | C178: 3 | D178: -2.979455264 | E178: =$C$9*(B178-$C$17)^$C$13 -> -2.1101248 | F178: =IF(B178>$C$17,SUM(C178:E178),IF(B178>$C$15,SUM(C178:D178),C178)) -> 0.02054473593 | H178: -15.57565531 | I178: 19.5812824 | K178: -17.43040983 | L178: 21.91302839
B179: 38.75 | C179: 3 | D179: -2.986574608 | E179: =$C$9*(B179-$C$17)^$C$13 -> -2.0971748 | F179: =IF(B179>$C$17,SUM(C179:E179),IF(B179>$C$15,SUM(C179:D179),C179)) -> 0.01342539206 | H179: -15.65649007 | I179: 19.50758233 | K179: -17.52585722 | L179: 21.83676553
B180: 39 | C180: 3 | D180: -2.993658234 | E180: =$C$9*(B180-$C$17)^$C$13 -> -2.0842248 | F180: =IF(B180>$C$17,SUM(C180:E180),IF(B180>$C$15,SUM(C180:D180),C180)) -> 0.006341766385 | H180: -15.73700078 | I180: 19.43357751 | K180: -17.62097095 | L180: 21.76008692
B181: 39.25 | C181: 3 | D181: -3.000706581 | E181: =$C$9*(B181-$C$17)^$C$13 -> -2.0712748 | F181: =IF(B181>$C$17,SUM(C181:E181),IF(B181>$C$15,SUM(C181:D181),C181)) -> -0.0007065809583 | H181: -15.81718616 | I181: 19.35926893 | K181: -17.7157492 | L181: 21.68299403
B182: 39.5 | C182: 3 | D182: -3.007720081 | E182: =$C$9*(B182-$C$17)^$C$13 -> -2.0583248 | F182: =IF(B182>$C$17,SUM(C182:E182),IF(B182>$C$15,SUM(C182:D182),C182)) -> -0.007720081263 | H182: -15.89704493 | I182: 19.28465758 | K182: -17.81019017 | L182: 21.60548833
B183: 39.75 | C183: 3 | D183: -3.014699157 | E183: =$C$9*(B183-$C$17)^$C$13 -> -2.0453748 | F183: =IF(B183>$C$17,SUM(C183:E183),IF(B183>$C$15,SUM(C183:D183),C183)) -> -0.01469915747 | H183: -15.97657583 | I183: 19.20974447 | K183: -17.90429206 | L183: 21.5275713
B184: 40 | C184: 3 | D184: -3.021644224 | E184: =$C$9*(B184-$C$17)^$C$13 -> -2.0324248 | F184: =IF(B184>$C$17,SUM(C184:E184),IF(B184>$C$15,SUM(C184:D184),C184)) -> -0.02164422438 | H184: -16.0557776 | I184: 19.13453064 | K184: -17.99805307 | L184: 21.44924441
B185: 40.25 | C185: 3 | D185: -3.028555689 | E185: =$C$9*(B185-$C$17)^$C$13 -> -2.0194748 | F185: =IF(B185>$C$17,SUM(C185:E185),IF(B185>$C$15,SUM(C185:D185),C185)) -> -0.02855568888 | H185: -16.13464898 | I185: 19.05901712 | K185: -18.09147143 | L185: 21.37050915
B186: 40.5 | C186: 3 | D186: -3.03543395 | E186: =$C$9*(B186-$C$17)^$C$13 -> -2.0065248 | F186: =IF(B186>$C$17,SUM(C186:E186),IF(B186>$C$15,SUM(C186:D186),C186)) -> -0.03543395016 | H186: -16.2131887 | I186: 18.98320495 | K186: -18.18454535 | L186: 21.29136704
B187: 40.75 | C187: 3 | D187: -3.0422794 | E187: =$C$9*(B187-$C$17)^$C$13 -> -1.9935748 | F187: =IF(B187>$C$17,SUM(C187:E187),IF(B187>$C$15,SUM(C187:D187),C187)) -> -0.04227939987 | H187: -16.29139552 | I187: 18.90709522 | K187: -18.27727307 | L187: 21.21181956
B188: 41 | C188: 3 | D188: -3.049092422 | E188: =$C$9*(B188-$C$17)^$C$13 -> -1.9806248 | F188: =IF(B188>$C$17,SUM(C188:E188),IF(B188>$C$15,SUM(C188:D188),C188)) -> -0.04909242235 | H188: -16.3692682 | I188: 18.83068898 | K188: -18.36965281 | L188: 21.13186825
B189: 41.25 | C189: 3 | D189: -3.055873395 | E189: =$C$9*(B189-$C$17)^$C$13 -> -1.9676748 | F189: =IF(B189>$C$17,SUM(C189:E189),IF(B189>$C$15,SUM(C189:D189),C189)) -> -0.05587339482 | H189: -16.44680549 | I189: 18.75398734 | K189: -18.46168282 | L189: 21.05151461
B190: 41.5 | C190: 3 | D190: -3.062622688 | E190: =$C$9*(B190-$C$17)^$C$13 -> -1.9547248 | F190: =IF(B190>$C$17,SUM(C190:E190),IF(B190>$C$15,SUM(C190:D190),C190)) -> -0.06262268752 | H190: -16.52400616 | I190: 18.6769914 | K190: -18.55336135 | L190: 20.97076018
B191: 41.75 | C191: 3 | D191: -3.069340664 | E191: =$C$9*(B191-$C$17)^$C$13 -> -1.9417748 | F191: =IF(B191>$C$17,SUM(C191:E191),IF(B191>$C$15,SUM(C191:D191),C191)) -> -0.06934066394 | H191: -16.60086897 | I191: 18.59970226 | K191: -18.64468665 | L191: 20.8896065
B192: 42 | C192: 3 | D192: -3.076027681 | E192: =$C$9*(B192-$C$17)^$C$13 -> -1.9288248 | F192: =IF(B192>$C$17,SUM(C192:E192),IF(B192>$C$15,SUM(C192:D192),C192)) -> -0.07602768094 | H192: -16.67739271 | I192: 18.52212106 | K192: -18.73565698 | L192: 20.80805511
B193: 42.25 | C193: 3 | D193: -3.082684089 | E193: =$C$9*(B193-$C$17)^$C$13 -> -1.9158748 | F193: =IF(B193>$C$17,SUM(C193:E193),IF(B193>$C$15,SUM(C193:D193),C193)) -> -0.08268408895 | H193: -16.75357615 | I193: 18.44424893 | K193: -18.82627061 | L193: 20.72610757
B194: 42.5 | C194: 3 | D194: -3.089310232 | E194: =$C$9*(B194-$C$17)^$C$13 -> -1.9029248 | F194: =IF(B194>$C$17,SUM(C194:E194),IF(B194>$C$15,SUM(C194:D194),C194)) -> -0.08931023211 | H194: -16.82941807 | I194: 18.36608701 | K194: -18.91652581 | L194: 20.64376543
B195: 42.75 | C195: 3 | D195: -3.095906448 | E195: =$C$9*(B195-$C$17)^$C$13 -> -1.8899748 | F195: =IF(B195>$C$17,SUM(C195:E195),IF(B195>$C$15,SUM(C195:D195),C195)) -> -0.09590644841 | H195: -16.90491727 | I195: 18.28763647 | K195: -19.00642087 | L195: 20.56103026
B196: 43 | C196: 3 | D196: -3.10247307 | E196: =$C$9*(B196-$C$17)^$C$13 -> -1.8770248 | F196: =IF(B196>$C$17,SUM(C196:E196),IF(B196>$C$15,SUM(C196:D196),C196)) -> -0.1024730699 | H196: -16.98007254 | I196: 18.20889848 | K196: -19.09595408 | L196: 20.47790365
B197: 43.25 | C197: 3 | D197: -3.109010423 | E197: =$C$9*(B197-$C$17)^$C$13 -> -1.8640748 | F197: =IF(B197>$C$17,SUM(C197:E197),IF(B197>$C$15,SUM(C197:D197),C197)) -> -0.1090104227 | H197: -17.05488267 | I197: 18.12987422 | K197: -19.18512373 | L197: 20.39438716
B198: 43.5 | C198: 3 | D198: -3.115518827 | E198: =$C$9*(B198-$C$17)^$C$13 -> -1.8511248 | F198: =IF(B198>$C$17,SUM(C198:E198),IF(B198>$C$15,SUM(C198:D198),C198)) -> -0.1155188273 | H198: -17.12934648 | I198: 18.05056488 | K198: -19.27392812 | L198: 20.31048239
B199: =IF(B198+$B$21<90.00001,B198+$B$21,90) -> 43.75 | C199: 3 | D199: -3.121998599 | E199: =$C$9*(B199-$C$17)^$C$13 -> -1.8381748 | F199: =IF(B199>$C$17,SUM(C199:E199),IF(B199>$C$15,SUM(C199:D199),C199)) -> -0.1219985988 | H199: -17.20346277 | I199: 17.97097166 | K199: -19.36236556 | L199: 20.22619094
B200: 44 | C200: 3 | D200: -3.128450046 | E200: =$C$9*(B200-$C$17)^$C$13 -> -1.8252248 | F200: =IF(B200>$C$17,SUM(C200:E200),IF(B200>$C$15,SUM(C200:D200),C200)) -> -0.1284500464 | H200: -17.27723036 | I200: 17.89109578 | K200: -19.45043437 | L200: 20.14151441
B201: 44.25 | C201: 3 | D201: -3.134873474 | E201: =$C$9*(B201-$C$17)^$C$13 -> -1.8122748 | F201: =IF(B201>$C$17,SUM(C201:E201),IF(B201>$C$15,SUM(C201:D201),C201)) -> -0.1348734745 | H201: -17.35064807 | I201: 17.81093845 | K201: -19.53813288 | L201: 20.05645442
B202: 44.5 | C202: 3 | D202: -3.141269182 | E202: =$C$9*(B202-$C$17)^$C$13 -> -1.7993248 | F202: =IF(B202>$C$17,SUM(C202:E202),IF(B202>$C$15,SUM(C202:D202),C202)) -> -0.141269182 | H202: -17.42371473 | I202: 17.73050092 | K202: -19.6254594 | L202: 19.97101258
B203: 44.75 | C203: 3 | D203: -3.147637463 | E203: =$C$9*(B203-$C$17)^$C$13 -> -1.7863748 | F203: =IF(B203>$C$17,SUM(C203:E203),IF(B203>$C$15,SUM(C203:D203),C203)) -> -0.1476374628 | H203: -17.49642916 | I203: 17.64978442 | K203: -19.71241228 | L203: 19.88519052
B204: 45 | C204: 3 | D204: -3.153978606 | E204: =$C$9*(B204-$C$17)^$C$13 -> -1.7734248 | F204: =IF(B204>$C$17,SUM(C204:E204),IF(B204>$C$15,SUM(C204:D204),C204)) -> -0.1539786061 | H204: -17.56879021 | I204: 17.56879021 | K204: -19.79898987 | L204: 19.79898987
B205: 45.25 | C205: 3 | D205: -3.160292896 | E205: =$C$9*(B205-$C$17)^$C$13 -> -1.7604748 | F205: =IF(B205>$C$17,SUM(C205:E205),IF(B205>$C$15,SUM(C205:D205),C205)) -> -0.1602928959 | H205: -17.64079672 | I205: 17.48751955 | K205: -19.88519052 | L205: 19.71241228
B206: 45.5 | C206: 3 | D206: -3.166580612 | E206: =$C$9*(B206-$C$17)^$C$13 -> -1.7475248 | F206: =IF(B206>$C$17,SUM(C206:E206),IF(B206>$C$15,SUM(C206:D206),C206)) -> -0.1665806118 | H206: -17.71244753 | I206: 17.40597371 | K206: -19.97101258 | L206: 19.6254594
B207: 45.75 | C207: 3 | D207: -3.172842028 | E207: =$C$9*(B207-$C$17)^$C$13 -> -1.7345748 | F207: =IF(B207>$C$17,SUM(C207:E207),IF(B207>$C$15,SUM(C207:D207),C207)) -> -0.1728420285 | H207: -17.7837415 | I207: 17.32415398 | K207: -20.05645442 | L207: 19.53813288
B208: 46 | C208: 3 | D208: -3.179077416 | E208: =$C$9*(B208-$C$17)^$C$13 -> -1.7216248 | F208: =IF(B208>$C$17,SUM(C208:E208),IF(B208>$C$15,SUM(C208:D208),C208)) -> -0.1790774164 | H208: =(F208+$I$21)*COS(RADIANS(B208+$I$22)) -> -17.8546775 | I208: =(F208+$I$21)*SIN(RADIANS(B208+$I$22)) -> 17.24206164 | K208: -20.14151441 | L208: 19.45043437
B209: 46.25 | C209: 3 | D209: -3.185287041 | E209: =$C$9*(B209-$C$17)^$C$13 -> -1.7086748 | F209: =IF(B209>$C$17,SUM(C209:E209),IF(B209>$C$15,SUM(C209:D209),C209)) -> -0.1852870414 | H209: -17.92525437 | I209: 17.15969799 | K209: -20.22619094 | L209: 19.36236556
B210: 46.5 | C210: 3 | D210: -3.191471165 | E210: =$C$9*(B210-$C$17)^$C$13 -> -1.6957248 | F210: =IF(B210>$C$17,SUM(C210:E210),IF(B210>$C$15,SUM(C210:D210),C210)) -> -0.1914711652 | H210: -17.995471 | I210: 17.07706434 | K210: -20.31048239 | L210: 19.27392812
B211: 46.75 | C211: 3 | D211: -3.197630045 | E211: =$C$9*(B211-$C$17)^$C$13 -> -1.6827748 | F211: =IF(B211>$C$17,SUM(C211:E211),IF(B211>$C$15,SUM(C211:D211),C211)) -> -0.1976300451 | H211: -18.06532626 | I211: 16.99416201 | K211: -20.39438716 | L211: 19.18512373
... 173 more rows

Sheet Sheet2

Sheet Sheet3
